Cogmind - Beta 12 @@@ ROGUE MODE // 2023.11.02 @ 17:30:16 Player: Figgis Result: Destroyed by S-27 Virus with Autogun Performance ------------- Evolutions (5) 2500 Regions Visited (12) 2400 Robots Destroyed (160) 800 Value Destroyed (6035) 6035 Prototype IDs (31) 620 Alien Tech Used (0) 0 Bonus (1597) 1597 TOTAL SCORE: 13952 Bonus ------- High Alert Combat Kills 756 Follower Combat Kills 560 Aligned with FarCom 300 Friendly Fire -19 Cogmind --------- Core Integrity 0/1000 Matter 300/300 Energy 99/100 System Corruption 3% Temperature Cool (0) Movement Core (50) Location -5/Upper Caves Parts ------- > --- POWER (2) -------- (None) > --- PROPULSION (4) --- (None) > --- UTILITY (6) ------ (None) > --- WEAPON (5) ------- Ripper > --- INVENTORY (5) ---- Improved Medium Armor Plating Layered Light Armor Plating Improved System Restoration Module HERF Cannon Railgun Peak State ------------ > --- POWER ------------ Light Angular Momentum Engine Cold Fusion Reactor > --- PROPULSION ------- Improved Carbon-fiber Leg Flexi-carbon Leg > --- UTILITY ---------- Large Storage Unit Modified TNC Advanced Targeting Computer Kinecellerator Hardened Medium Armor Plating Improved Hacking Suite > --- WEAPON ----------- Minigun Advanced Assault Cannon Advanced Assault Cannon Antimatter Cannon Antimatter Cannon > --- INVENTORY -------- Improved Deuterium Engine Makeshift Leg Cooled Cesium-ion Thruster Coolant Injector Superbattery Matter Compressor Cloaking Device Improved Medium Armor Plating Layered Light Armor Plating System Restoration Module Improved System Restoration Module Minigun Coil Gun Deploy-a-Sentry [Rating: 72] Favorites ----------- Power Heavy Ion Engine Engine Heavy Ion Engine Power Core Micro Nuclear Core Reactor Cold Fusion Reactor Propulsion Improved Carbon-fiber Leg Treads Light Treads Leg Improved Carbon-fiber Leg Flight Unit Cooled Cesium-ion Thruster Utility Large Storage Unit Device Weight Redist. System Storage Large Storage Unit Processor Advanced Targeting Computer Hackware Improved Hacking Suite Protection Improved Light Armor Plating Weapon Antimatter Cannon Energy Gun Medium Laser Energy Cannon Heavy Ion Cannon Ballistic Gun Improved Assault Rifle Ballistic Cannon Antimatter Cannon Slashing Weapon Axe Special Melee Weapon Dirty Datajack Build | -11 -10 -10 -9 -9 -9 -8 -8 -7 -6 -5 -5 -5 ------- Run | Jun Mat Min Mat Min Exi Min Mat Fac Fac Fac Upp Upp Slots Evolved 10 | . . . 2 . . . 2 2 2 2 . . Power 1 | . . . . . . . . . 1 . . . Propulsion 2 | . . . . . . . 1 . 1 . . . Utility 4 | . . . 1 . . . 1 1 . 1 . . Weapon 3 | . . . 1 . . . . 1 . 1 . . Parts Attached 112 | 3 3 . 15 . 2 1 10 24 31 12 10 1 Power 16 | 1 . . 2 . . . 2 1 6 2 2 . Engine 12 | 1 . . 2 . . . 2 1 4 1 1 . Core 3 | . . . . . . . . . 2 . 1 . Reactor 1 | . . . . . . . . . . 1 . . Propulsion 33 | 2 . . 2 . 2 . 2 7 12 4 2 . Treads 4 | 2 . . 2 . . . . . . . . . Leg 28 | . . . . . 2 . 2 7 12 4 1 . Wheel . | . . . . . . . . . . . . . Hover . | . . . . . . . . . . . . . Flight 1 | . . . . . . . . . . . 1 . Utility 19 | . 1 . 2 . . 1 2 5 5 2 1 . Device 9 | . . . 1 . . . . 4 2 1 1 . Storage 1 | . 1 . . . . . . . . . . . Processor 2 | . . . . . . . 1 1 . . . . Hackware 2 | . . . . . . . 1 . 1 . . . Protection 5 | . . . 1 . . 1 . . 2 1 . . Artifact . | . . . . . . . . . . . . . Weapon 44 | . 2 . 9 . . . 4 11 8 4 5 1 Energy Gun 3 | . 1 . . . . . . 1 . . 1 . Energy Cannon 1 | . . . . . . . . 1 . . . . Ballistic Gun 22 | . 1 . 8 . . . 3 3 3 2 2 . Ballistic Cannon 14 | . . . . . . . 1 6 5 2 . . Launcher . | . . . . . . . . . . . . . Special Weapon . | . . . . . . . . . . . . . Impact Weapon . | . . . . . . . . . . . . . Slashing Weapon 2 | . . . 1 . . . . . . . . 1 Piercing Weapon . | . . . . . . . . . . . . . Special Melee Weapon 2 | . . . . . . . . . . . 2 . Unidentified Prototypes 7 | . . . 2 . . . 1 1 1 1 1 . Parts Lost 59 | . . . 2 . . . . 10 18 7 20 2 Power 10 | . . . . . . . . 1 4 2 3 . Propulsion 18 | . . . 1 . . . . 3 8 2 4 . Utility 9 | . . . . . . . . 1 2 . 4 2 Weapon 22 | . . . 1 . . . . 5 4 3 9 . Highest Loss Streak 8 | . . . 1 . . . . 6 3 3 7 8 To Critical Strikes . | . . . . . . . . . . . . . Average Slot Usage (%) 88 | . 79 85 94 100 100 100 99 97 81 85 59 11 Engine 8 | . 14 14 11 11 11 11 9 6 9 5 2 . Treads 4 | . 28 28 21 22 16 . . . . . . . Leg 15 | . . . . . 5 22 27 22 17 11 10 . Device 4 | . . . 9 11 11 11 . 6 . 4 5 . Storage 7 | . 12 14 11 11 11 11 9 7 6 5 4 . Processor 9 | . . . . . . . 8 15 13 11 10 . Hackware 4 | . . . . . . . 9 7 6 5 5 4 Protection 3 | . . . 8 11 11 11 9 . 3 5 . . Energy Gun 2 | . 12 14 2 . . . . . 1 . 2 . Energy Cannon 1 | . . . . . . . . 6 . . . . Ballistic Gun 13 | . 12 14 28 33 33 33 22 10 3 8 8 . Ballistic Cannon 7 | . . . . . . . 4 9 13 18 . . Naked Turns . | . . . . . . . . . . . . . Heaviest Build 84 | 3 27 27 40 40 40 40 43 56 74 84 60 3 Greatest Support 72 | 3 40 40 46 46 46 41 52 56 72 50 50 6 Greatest Overweight (x) 9 | . . . 1 . . . . 1 2 4 9 . Average Overweight (x) . | . . . . . . . . . . 1 . . Largest Inventory Capacity 15 | 5 15 15 15 15 15 15 15 15 15 15 15 5 Average Capacity 14 | 5 13 15 15 15 15 15 15 15 15 15 14 5 Most Carried 15 | 5 5 7 15 15 15 15 15 15 15 14 15 5 Average Carried 13 | 3 2 6 12 15 14 14 14 14 13 12 13 4 Final Capacity 15 | 5 15 15 15 15 15 15 15 15 15 15 5 5 Final Carried 15 | 5 4 7 15 15 15 15 15 13 15 14 4 5 Class Distribution -------------------- 38% | Gunner 26% | Mutant 9% | Skirmisher 7% | Scavenger-Gunner 5% | Tank 4% | Scavenger-Skirmisher 4% | Scavenger-Mutant Dominant Class ---------------- Mutant | -10/Materials Mutant | -10/Mines Scavenger-Tank | -9/Materials Mutant | -9/Mines Tank | -9/Exiles Skirmisher | -8/Mines Scavenger-Skirmisher | -8/Materials Gunner | -7/Factory Gunner | -6/Factory Gunner | -5/Factory Scavenger-Mutant | -5/Upper Caves Mutant | -5/Upper Caves Resources | -11 -10 -10 -9 -9 -9 -8 -8 -7 -6 -5 -5 -5 ----------- Run | Jun Mat Min Mat Min Exi Min Mat Fac Fac Fac Upp Upp Matter Collected 5355 | 230 48 54 346 . . 111 283 1422 1668 427 756 10 Remotely . | . . . . . . . . . . . . . Salvage Created 5363 | . 84 153 912 . . 279 364 1500 1167 248 607 49 Parts 272 | . 4 17 46 . . 15 31 74 48 9 27 1 Haulers Intercepted 4 | . . . 3 . . . . . 1 . . . Recyclers Shooed 4 | . . . . . . . . 1 3 . . . Parts Field Recycled . | . . . . . . . . . . . . . Retrieved Matter . | . . . . . . . . . . . . . Parts Self-Destructed 32 | . . . . . . . . . . . 31 1 Prevented . | . . . . . . . . . . . . . Kills | -11 -10 -10 -9 -9 -9 -8 -8 -7 -6 -5 -5 -5 ------- Run | Jun Mat Min Mat Min Exi Min Mat Fac Fac Fac Upp Upp Combat Hostiles Destroyed 118 | . 2 8 14 . . 3 6 34 29 7 13 2 Melee 2 | . . . . . . . . . . . . 2 Guns 56 | . 2 8 14 . . 3 5 8 5 . 11 . Cannons 57 | . . . . . . . 1 25 23 7 1 . AOE 2 | . . . . . . . . . 1 . 1 . Classes Destroyed 15 | . 1 1 4 . . 1 3 2 2 . . 1 Worker 5 | . . . . . . . 1 . 4 . . . Builder 9 | . . . 1 . . . 1 3 4 . . . Tunneler 1 | . . . . . . . . . 1 . . . Hauler 4 | . . . 3 . . . . . 1 . . . Recycler 7 | . . . 1 . . 2 . 1 3 . . . Operator 5 | . . . . . . . . 2 3 . . . Watcher 11 | . . . . . . . 2 5 3 1 . . Swarmer 23 | . . 7 . . . . . 6 4 . 5 1 Grunt 57 | . 2 1 11 . . 2 1 15 18 1 6 . Duelist 4 | . . . . . . 1 . 2 . . 1 . Sentry 20 | . . . 3 . . . 4 7 4 1 1 . Hunter 3 | . . . . . . . 1 1 . 1 . . Programmer 9 | . . . . . . . . 3 2 4 . . Behemoth 1 | . . . . . . . . . 1 . . . Master Thief 1 | . . . . . . . . . . . . 1 Best Kill Streak 10 | . 1 3 4 . . 4 2 10 6 3 4 1 Combat Bots Only 7 | . 1 3 4 . . 2 1 7 5 3 4 1 Max Kills in Single Turn 5 | . 1 1 2 . . 2 1 2 5 1 1 1 Gunslinging 1 | . . . 1 . . 1 . . . . . . Exploded 1 | . . . . . . . . . 1 . 1 . Melee 1 | . . . . . . . . . . . . 1 Uniques/NPCs Destroyed . | . . . . . . . . . . . . . Combat | -11 -10 -10 -9 -9 -9 -8 -8 -7 -6 -5 -5 -5 -------- Run | Jun Mat Min Mat Min Exi Min Mat Fac Fac Fac Upp Upp Damage Taken 10331 | . 54 209 529 . . 140 257 2310 2960 1109 2378 385 Core 1874 | . 10 17 52 . . 32 61 335 367 20 655 325 Absorbed by Shields . | . . . . . . . . . . . . . Regen/Repaired (Parts) 94 | . . . . . . . . . . 94 . . Core Remaining (%) 77 | 100 . 89 . . . 79 88 52 56 . . . Volleys Fired 333 | . 6 18 39 . . 9 24 82 98 19 38 . Largest 5 | . 2 2 3 . . 3 3 4 4 5 4 . Hottest 208 | . 70 70 90 . . 69 97 189 208 201 132 . Shots Fired 988 | . 12 36 115 . . 27 72 279 286 77 84 . Gun 515 | . 12 36 115 . . 27 57 107 62 25 74 . Cannon 473 | . . . . . . . 15 172 224 52 10 . Launcher . | . . . . . . . . . . . . . Special . | . . . . . . . . . . . . . Kinetic 844 | . 6 18 113 . . 27 72 214 245 77 72 . Thermal 144 | . 6 18 2 . . . . 65 41 . 12 . Explosive . | . . . . . . . . . . . . . Electromagnetic . | . . . . . . . . . . . . . Robot Hit Streak 21 | . 4 7 17 . . 7 13 17 19 8 21 . Robot Miss Streak 6 | . 3 4 3 . . 1 3 5 6 4 4 . Penetration Max 1 | . . . . . . . 1 1 1 . . . Secondary Targets 8 | . . . 4 . . 3 . . . . 1 . Max Gunslinging Chain 2 | . . . 1 . . 2 . . . . 1 . Shots Hit Robots 659 | . 7 21 85 . . 18 47 163 200 48 65 5 Core Hits 296 | . 5 9 42 . . 13 19 74 90 15 27 2 Critical Kills 3 | . . . . . . . . 2 . . 1 . Critical Parts Destroyed 2 | . . . . . . . . 1 . 1 . . Critical Strikes 31 | . 1 1 . . . . 1 13 11 2 2 . Burn 2 | . 1 1 . . . . . . . . . . Meltdown 1 | . . . . . . . . 1 . . . . Destroy 4 | . . . . . . . . 2 . 1 1 . Blast 24 | . . . . . . . 1 10 11 1 1 . Melee Attacks 19 | . . . 2 . . . . . . . 5 12 Impact . | . . . . . . . . . . . . . Slashing 14 | . . . 2 . . . . . . . . 12 Piercing 5 | . . . . . . . . . . . 5 . Sneak Attacks . | . . . . . . . . . . . . . Combat Hostiles . | . . . . . . . . . . . . . Follow-up Attacks . | . . . . . . . . . . . . . Damage Inflicted 17473 | . 83 300 940 . . 315 870 4778 6915 1694 1390 188 Guns 6230 | . 83 300 940 . . 315 656 1305 1055 376 1200 . Cannons 9845 | . . . . . . . 214 2920 5380 1151 180 . Explosions 1200 | . . . . . . . . 553 480 167 . . Melee 198 | . . . . . . . . . . . 10 188 Ramming . | . . . . . . . . . . . . . Kinetic 13861 | . 34 140 927 . . 315 870 3215 5623 1527 1210 . Thermal 2934 | . 49 160 13 . . . . 1563 812 167 170 . Explosive 480 | . . . . . . . . . 480 . . . Electromagnetic . | . . . . . . . . . . . . . Impact . | . . . . . . . . . . . . . Slashing 188 | . . . . . . . . . . . . 188 Piercing 10 | . . . . . . . . . . . 10 . Highest Corruption 3 | . . . . . . . 1 3 2 3 3 3 Average Corruption 2 | . . . . . . . 1 2 1 1 3 3 Corruption Purged 4 | . . . . . . . . 3 1 . . . Corruption Blocked . | . . . . . . . . . . . . . Effects 63 | . . . . . . . 1 33 14 1 13 1 Message Errors 15 | . . . . . . . . 7 4 1 3 . Matter Fused 12 | . . . . . . . 1 6 1 . 4 . Heat Flow Errors 6 | . . . . . . . . 3 1 . 2 . Energy Discharges 7 | . . . . . . . . 5 2 . . . Data Loss (minor) 13 | . . . . . . . . 8 2 . 2 1 Data Loss (major) 2 | . . . . . . . . 1 . . 1 . Misfires 4 | . . . . . . . . . 4 . . . Alerts 1 | . . . . . . . . 1 . . . . Weapon Failures 3 | . . . . . . . . 2 . . 1 . Overload Shots . | . . . . . . . . . . . . . Overflow Damage 639 | . . . . . . . . 258 247 91 . 43 Projectiles 240 | . . . . . . . . 31 122 87 . . Explosions 356 | . . . . . . . . 227 125 4 . . Melee 43 | . . . . . . . . . . . . 43 Knockbacks 74 | . . . . . . . 2 11 50 11 . . Impact . | . . . . . . . . . . . . . Kinetic 65 | . . . . . . . 2 10 44 9 . . Secondary 9 | . . . . . . . . 1 6 2 . . Self-Inflicted Damage 515 | . . . . . . . . 192 86 237 . . Shots 8 | . . . . . . . . 3 1 4 . . Rammed 1 | . . . 1 . . . . . . . . . Targets Rammed 1 | . . . 1 . . . . . . . . . Kicked . | . . . . . . . . . . . . . Crushed . | . . . . . . . . . . . . . Highest Temperature 629 | . 36 72 86 . . 36 126 425 629 407 329 317 Average Temperature 104 | . 18 25 35 . . 19 42 102 137 136 104 161 Received Heat Transfer 2598 | . 30 6 279 . . 81 126 582 744 153 597 . Effects 22 | . . . . . . . . 3 14 5 . . Shutdowns 6 | . . . . . . . . 1 3 2 . . Energy Bleed 4 | . . . . . . . . . 3 1 . . Interference 8 | . . . . . . . . 1 5 2 . . Matter Decay 2 | . . . . . . . . 1 1 . . . Short Circuit 1 | . . . . . . . . . 1 . . . Damage (core) 1 | . . . . . . . . . 1 . . . Siege Activations . | . . . . . . . . . . . . . Robots Corrupted . | . . . . . . . . . . . . . Combat Hostiles . | . . . . . . . . . . . . . Parts Fried . | . . . . . . . . . . . . . Impact Corruptions . | . . . . . . . . . . . . . Robots Melted 1 | . . . . . . . . 1 . . . . Combat Hostiles 1 | . . . . . . . . 1 . . . . Parts Melted 5 | . 1 . . . . . . . 1 . 3 . Heat Transferred 4879 | . 222 518 37 . . . . 1819 1800 150 333 . Parts Sabotaged . | . . . . . . . . . . . . . Parts Stolen 3 | . . . . . . . . . . . . 3 Parts Stripped . | . . . . . . . . . . . . . Power Chain Reactions . | . . . . . . . . . . . . . Missiles Intercepted . | . . . . . . . . . . . . . Alert | -11 -10 -10 -9 -9 -9 -8 -8 -7 -6 -5 -5 -5 ------- Run | Jun Mat Min Mat Min Exi Min Mat Fac Fac Fac Upp Upp Peak Influence 991 | . 71 290 246 73 . 288 189 728 991 738 . . Initial 457 | . . 27 . 73 . . . 60 339 457 . . Average 378 | . 37 158 122 73 . 156 101 282 742 629 . . Maximum Alert Level 3 | . . 1 1 . . 1 . 3 3 3 . . Low Security (%) 44 | 100 100 82 89 100 . 71 100 46 . . . . Level 1 16 | . . 17 10 . . 28 . 32 7 . . . Level 2 19 | . . . . . . . . 16 30 86 . . Level 3 19 | . . . . . . . . 4 61 13 . . Level 4 . | . . . . . . . . . . . . . Level 5 . | . . . . . . . . . . . . . High Security . | . . . . . . . . . . . . . Max Security . | . . . . . . . . . . . . . Squads Dispatched 28 | . . . 1 . . . 1 9 14 3 . . Investigation 7 | . . . 1 . . . 1 2 2 1 . . Extermination 9 | . . . . . . . . 3 4 2 . . Reinforcement 10 | . . . . . . . . 3 7 . . . Assault 2 | . . . . . . . . 1 1 . . . Garrison . | . . . . . . . . . . . . . Intercept . | . . . . . . . . . . . . . Searches Triggered . | . . . . . . . . . . . . . Construction Impeded 3 | . . . . . . . . 1 2 . . . Haulers Reinforced 2 | . . . . . . . . . 2 . . . Active Scanning Responses . | . . . . . . . . . . . . . Cargo Convoy Interrupts . | . . . . . . . . . . . . . Stealth | -11 -10 -10 -9 -9 -9 -8 -8 -7 -6 -5 -5 -5 --------- Run | Jun Mat Min Mat Min Exi Min Mat Fac Fac Fac Upp Upp Distress Signals 11 | . . . 3 . . . . 4 4 . . . Communications Jammed . | . . . . . . . . . . . . . Distress Signals . | . . . . . . . . . . . . . Times Spotted 212 | . 3 12 24 . . 11 12 55 52 13 22 8 Peak Tracking Total 7 | . 3 3 7 . . 5 3 5 7 4 7 4 Tactical Retreats 12 | . . 1 2 . . 1 1 3 2 . 1 1 Traps | -11 -10 -10 -9 -9 -9 -8 -8 -7 -6 -5 -5 -5 ------- Run | Jun Mat Min Mat Min Exi Min Mat Fac Fac Fac Upp Upp Traps Triggered 12 | . . . . . . . 1 2 8 1 . . Indirectly . | . . . . . . . . . . . . . Trap Hack Attempts . | . . . . . . . . . . . . . Triggered . | . . . . . . . . . . . . . Disarmed . | . . . . . . . . . . . . . Reprogrammed . | . . . . . . . . . . . . . Reused . | . . . . . . . . . . . . . Traps Extracted . | . . . . . . . . . . . . . Installed . | . . . . . . . . . . . . . Triggered 1 | . . . . . . . . . . . 1 . Machines | -11 -10 -10 -9 -9 -9 -8 -8 -7 -6 -5 -5 -5 ---------- Run | Jun Mat Min Mat Min Exi Min Mat Fac Fac Fac Upp Upp Machines Disabled 29 | . . 1 . . . . 1 12 9 6 . . Max in Single Turn 5 | . . 1 . . . . 1 4 2 5 . . Garrison Access 3 | . . . . . . . 1 1 1 . . . Machines Repaired . | . . . . . . . . . . . . . Machines Sabotaged . | . . . . . . . . . . . . . Overloaded Fab Kills . | . . . . . . . . . . . . . Hacking | -11 -10 -10 -9 -9 -9 -8 -8 -7 -6 -5 -5 -5 --------- Run | Jun Mat Min Mat Min Exi Min Mat Fac Fac Fac Upp Upp Machines Accessed 33 | . 1 . 4 . 2 1 4 12 5 2 1 1 Terminals 20 | . 1 . 4 . . 1 3 7 4 . . . Fabricators 2 | . . . . . . . . 2 . . . . Repair Stations 2 | . . . . . . . . . . 2 . . Recycling Units 1 | . . . . . . . . 1 . . . . Scanalyzers 1 | . . . . . . . . 1 . . . . Garrison Access 3 | . . . . . . . 1 1 1 . . . Total Hacks 68 | . 4 . 12 . 2 1 8 21 10 8 1 1 Successful 32 | . 1 . 5 . 2 1 5 11 2 3 1 1 Failed 35 | . 2 . 7 . . . 3 10 8 5 . . Catastrophic 3 | . . . . . . . . 2 1 . . . Database Lockouts 1 | . 1 . . . . . . . . . . . Manual 15 | . 4 . . . 1 . 4 4 2 . . . Terminals 43 | . 4 . 12 . . 1 7 12 7 . . . Fabricators 2 | . . . . . . . . 2 . . . . Repair Stations 8 | . . . . . . . . . . 8 . . Recycling Units 1 | . . . . . . . . 1 . . . . Scanalyzers 4 | . . . . . . . . 4 . . . . Garrison Access 6 | . . . . . . . 1 2 3 . . . Terminal Hacks 20 | . 1 . 5 . 2 1 4 4 1 . 1 1 Record 3 | . . . 1 . 1 . . 1 . . . . Robot Analysis 1 | . 1 . . . . . . . . . . . Prototype ID Bank 1 | . . . . . . . 1 . . . . . Open Door 2 | . . . . . . . . . . . 1 1 Level Access Points 1 | . . . . . . . . . 1 . . . Branch Access Points 2 | . . . . . . . 1 1 . . . . Terminal Index 1 | . . . . . . . 1 . . . . . Alert Level 1 | . . . 1 . . . . . . . . . Locate Traps 3 | . . . 1 . . . 1 1 . . . . Dispatch Records 1 | . . . . . . 1 . . . . . . Hauler Manifests 1 | . . . 1 . . . . . . . . . Registered Components 1 | . . . . . . . . 1 . . . . Zone Layout 1 | . . . 1 . . . . . . . . . EX-Prototype ID Bank 1 | . . . . . 1 . . . . . . . Fabricator Hacks 2 | . . . . . . . . 2 . . . . Network Status 2 | . . . . . . . . 2 . . . . Repair Station Hacks 3 | . . . . . . . . . . 3 . . Scan Component 2 | . . . . . . . . . . 2 . . Repair 1 | . . . . . . . . . . 1 . . Recycling Unit Hacks 1 | . . . . . . . . 1 . . . . Report Inventory 1 | . . . . . . . . 1 . . . . Scanalyzer 3 | . . . . . . . . 3 . . . . Insert Component 2 | . . . . . . . . 2 . . . . Analyze 1 | . . . . . . . . 1 . . . . Garrison Access Hacks 3 | . . . . . . . 1 1 1 . . . Seal Access 3 | . . . . . . . 1 1 1 . . . Unauthorized Hacks . | . . . . . . . . . . . . . Terminals . | . . . . . . . . . . . . . Fabricators . | . . . . . . . . . . . . . Repair Stations . | . . . . . . . . . . . . . Recycling Units . | . . . . . . . . . . . . . Scanalyzers . | . . . . . . . . . . . . . Garrison Access . | . . . . . . . . . . . . . Data Cores Recovered 4 | . . . . . . . . 2 2 . . . Used . | . . . . . . . . . . . . . Hacking Detections 25 | . 1 . 4 . . 1 3 10 4 2 . . Full Trace Events 3 | . . . . . . . 1 2 . . . . Feedback Events . | . . . . . . . . . . . . . Feedback Blocked . | . . . . . . . . . . . . . Robot Schematics Acquired . | . . . . . . . . . . . . . Robots Built . | . . . . . . . . . . . . . Authchips . | . . . . . . . . . . . . . Time . | . . . . . . . . . . . . . Total Robot Build Rating . | . . . . . . . . . . . . . Part Schematics Acquired 1 | . . . . . . . . 1 . . . . Parts Built . | . . . . . . . . . . . . . Authchips . | . . . . . . . . . . . . . Time . | . . . . . . . . . . . . . Total Part Build Rating . | . . . . . . . . . . . . . Parts Repaired 1 | . . . . . . . . . . 1 . . Time 25 | . . . . . . . . . . 25 . . Parts Recycled . | . . . . . . . . . . . . . Recycled Matter . | . . . . . . . . . . . . . Retrieved Matter . | . . . . . . . . . . . . . Retrieved Components . | . . . . . . . . . . . . . Parts Scanalyzed 1 | . . . . . . . . 1 . . . . Part Schematics Acquired 1 | . . . . . . . . 1 . . . . Parts Damaged . | . . . . . . . . . . . . . Bothacking | -11 -10 -10 -9 -9 -9 -8 -8 -7 -6 -5 -5 -5 ------------ Run | Jun Mat Min Mat Min Exi Min Mat Fac Fac Fac Upp Upp Used RIF Installer . | . . . . . . . . . . . . . Robots Hacked . | . . . . . . . . . . . . . Non-combat . | . . . . . . . . . . . . . Combat . | . . . . . . . . . . . . . Robot Hacks Applied . | . . . . . . . . . . . . . Relay Couplers Released . | . . . . . . . . . . . . . Fabnet Peak Effective % . | . . . . . . . . . . . . . Robots Rewired . | . . . . . . . . . . . . . Allies Hacked . | . . . . . . . . . . . . . Hacks Repelled . | . . . . . . . . . . . . . Allies | -11 -10 -10 -9 -9 -9 -8 -8 -7 -6 -5 -5 -5 -------- Run | Jun Mat Min Mat Min Exi Min Mat Fac Fac Fac Upp Upp Total Allies 2 | . . 2 . . . . . . . . . . Largest Group 2 | . . 2 2 . . . . . . . . . Highest-Rated Group 49 | . . 49 49 . . . . . . . . . Highest-Rated Ally 31 | . . 31 31 . . . . . . . . . Total Orders . | . . . . . . . . . . . . . Ally Attacks 40 | . . 7 1 . . 13 . . 16 3 . . Total Damage 1778 | . . 107 . . . 577 . . 929 165 . . Kills 20 | . . 3 . . . 6 . . 8 3 . . Allies Corrupted . | . . . . . . . . . . . . . Allies Melted . | . . . . . . . . . . . . . Turrets Deployed 3 | . . . . . . 1 . . 1 1 . . Intel | -11 -10 -10 -9 -9 -9 -8 -8 -7 -6 -5 -5 -5 ------- Run | Jun Mat Min Mat Min Exi Min Mat Fac Fac Fac Upp Upp Robot Analysis Total 1 | . 1 . . . . . . . . . . . Derelict Logs Recovered 3 | . . 2 . 1 . . . . . . . . Drone Launches . | . . . . . . . . . . . . . Drone Recoveries . | . . . . . . . . . . . . . Exploration | -11 -10 -10 -9 -9 -9 -8 -8 -7 -6 -5 -5 -5 ------------- Run | Jun Mat Min Mat Min Exi Min Mat Fac Fac Fac Upp Upp Turns Passed 11160 | 31 236 903 621 56 547 821 730 2985 2664 648 839 79 Spaces Moved 6340 | 39 169 514 257 36 355 595 439 1909 1257 224 449 97 Core 159 | 39 57 . . . . . . . . . 3 60 Treads 1172 | . 112 514 257 36 253 . . . . . . . Legs 4887 | . . . . . 102 595 439 1909 1257 224 361 . Wheels . | . . . . . . . . . . . . . Hover . | . . . . . . . . . . . . . Flight 122 | . . . . . . . . . . . 85 37 Fastest Speed 35 | 50 50 160 160 160 130 130 126 120 120 190 35 35 Average Speed 146 | 50 122 160 161 160 151 130 128 132 169 229 153 44 Slowest Speed 500 | 50 160 160 240 160 160 130 130 190 260 400 500 50 Overloaded Moves . | . . . . . . . . . . . . . Propulsion Burnouts . | . . . . . . . . . . . . . Robots Hopped . | . . . . . . . . . . . . . Cave-ins Triggered . | . . . . . . . . . . . . . Exploration Rate (%) 42 | 3 32 98 23 17 68 98 45 46 37 6 62 12 Regions Visited 12 Branch Regions 6 Pre-discovered Areas 1 | . . . . . 1 . . . . . . . Known Exits Taken 2 | . . 1 . . . . . . 1 . . . Unknown Exits Taken 10 | 1 1 . 1 1 1 1 1 1 . 1 1 . Scrap Searched 3 | . . 1 . . . 2 . . . . . . Spaces Dug 2 | . . . 2 . . . . . . . . . Terrain Destroyed 210 | . . . 2 . . . 2 72 63 60 11 . Melee 2 | . . . 2 . . . . . . . . . Projectile 100 | . . . . . . . 2 29 48 10 11 . AOE 108 | . . . . . . . . 43 15 50 . . Terrain Rammed . | . . . . . . . . . . . . . Walls Destroyed . | . . . . . . . . . . . . . Machines Disabled . | . . . . . . . . . . . . . Actions | -11 -10 -10 -9 -9 -9 -8 -8 -7 -6 -5 -5 -5 --------- Run | Jun Mat Min Mat Min Exi Min Mat Fac Fac Fac Upp Upp Total 7473 | 49 185 559 387 35 366 623 555 2177 1573 316 533 115 Wait 487 | . 5 25 39 . . 13 63 116 155 46 23 2 Move 6328 | 38 168 513 256 35 354 594 438 1908 1256 223 448 97 Hop . | . . . . . . . . . . . . . Pick Up 116 | 8 2 3 22 . 5 3 9 19 22 13 7 3 Fast Attach 17 | . 1 . 1 . . . 3 4 7 . 1 . Attach 61 | 3 2 . 5 . . . 2 10 18 11 9 1 Detach 2 | . . . . . . . . . 2 . . . Swap 34 | . . . 9 . 2 1 5 10 6 1 . . Drop 60 | . 1 . 13 . 5 3 11 18 4 3 2 . Fire 333 | . 6 18 39 . . 9 24 82 98 19 38 . Melee 19 | . . . 2 . . . . . . . 5 12 Ram . | . . . . . . . . . . . . . Kick . | . . . . . . . . . . . . . Crush 1 | . . . 1 . . . . . . . . . Escape Stasis 15 | . . . . . . . . 10 5 . . . Rewire . | . . . . . . . . . . . . . Trap . | . . . . . . . . . . . . . Miscellaneous . | . . . . . . . . . . . . . Route ------- -11/Junkyard -10/Materials (discovered 2 exits: *Mat / [*Min]) -10/Mines (discovered 2 exits: *Mat x2) -9/Materials (discovered 2 exits: [*Min] / *Sto) -9/Mines -9/Exiles -8/Mines (discovered 2 exits: *Mat x2) -8/Materials -7/Factory (discovered 3 exits: *Fac / *Low x2) -6/Factory (discovered 5 exits: *Fac x4 / [*Low]) -5/Factory -5/Upper Caves -5/Upper Caves History --------- Turn | Location | Event 2 | -11/Junkyard | Met Revision 17 16 | -11/Junkyard | Discovered new exit (range 16) 32 | -11/Junkyard | Entered Materials 47 | -10/Materials | Central database locked down 184 | -10/Materials | Discovered new exit (range 16) 219 | -10/Materials | Discovered new exit (range 16) 268 | -10/Materials | Entered Mines 313 | -10/Mines | Build established: Mutant 349 | -10/Mines | Identified exit to Materials 724 | -10/Mines | Discovered exit to Materials (range 9) 1171 | -10/Mines | Entered Materials 1171 | -9/Materials | Accompanied by 2 allies 1171 | -9/Materials | Evolved 2 slots: Utility x1, Weapon x1 1172 | -9/Materials | Identified exit to Storage 1177 | -9/Materials | Led the pair of lost Derelicts to an unsafe place 1537 | -9/Materials | Discovered new exit (range 16) 1792 | -9/Materials | Entered Mines 1829 | -9/Mines | Learned Materials terminal intel 1840 | -9/Mines | Deemed a non-threat by the Exiles lab entrance 1840 | -9/Mines | Discovered new exit (range 5) 1848 | -9/Mines | Entered Exiles 1887 | -9/Exiles | Met 8R-AWN 1916 | -9/Exiles | Met EX-HEX 1957 | -9/Exiles | Met EX-BIN 1981 | -9/Exiles | Met EX-DEC 2139 | -9/Exiles | Build established: Tank 2208 | -9/Exiles | Aligned with FarCom system 2210 | -9/Exiles | Given EX-Vault access code 2247 | -9/Exiles | Opened EX-Vault 2264 | -9/Exiles | Found Modified TNC 2268 | -9/Exiles | Found Superbattery 2270 | -9/Exiles | Found Deploy-a-Sentry 2272 | -9/Exiles | Found Deploy-a-Sentry 2274 | -9/Exiles | Found Deploy-a-Sentry 2300 | -9/Exiles | Warned to stay clear of 0b10 Research branches 2343 | -9/Exiles | Learned location of Zion (-7) 2383 | -9/Exiles | Discovered new exit (range 10) 2395 | -9/Exiles | Stole three prototypes: Superbattery, Modified TNC, Deploy-a-Sentry 2395 | -9/Exiles | Entered Mines 2396 | -8/Mines | Discovered new exit (range 14) 2397 | -8/Mines | DAS Turret deployed 2670 | -8/Mines | Discovered new exit (range 15) 2699 | -8/Mines | Build established: Skirmisher 3216 | -8/Mines | Entered Materials 3216 | -8/Materials | Evolved 2 slots: Propulsion x1, Utility x1 3217 | -8/Materials | Loaded intel: 12 terminal locations 3892 | -8/Materials | Discovered new exit (range 16) 3946 | -8/Materials | Entered Factory 3946 | -7/Factory | Evolved 2 slots: Utility x1, Weapon x1 3948 | -7/Factory | FarCom data flow suspended 4492 | -7/Factory | Build established: Scavenger-Gunner 4871 | -7/Factory | Discovered new exit (range 15) 4965 | -7/Factory | Discovered new exit (range 15) 4992 | -7/Factory | Build established: Mutant 5310 | -7/Factory | Build established: Gunner 5581 | -7/Factory | Discovered new exit (range 5) 6216 | -7/Factory | Identified exit to Lower Caves 6365 | -7/Factory | Destroyed 7 combat bots 6708 | -7/Factory | Lost 6 parts (1p1n4w) 6746 | -7/Factory | First assault squad dispatched 6931 | -7/Factory | Entered another Factory area 6931 | -6/Factory | Evolved 2 slots: Power x1, Propulsion x1 6940 | -6/Factory | Build established: Mutant 6946 | -6/Factory | Identified exit to Factory 7210 | -6/Factory | Discovered new exit (range 8) 7504 | -6/Factory | Lost 3 parts (1p1n1w) 7554 | -6/Factory | Spotted B-75 Beast 7580 | -6/Factory | Build established: Gunner 7610 | -6/Factory | Destroyed B-75 Beast 7638 | -6/Factory | Lost 3 parts (1n1u1w) 7829 | -6/Factory | Lost 3 parts (1p1n1w) 7981 | -6/Factory | First assault squad dispatched 8053 | -6/Factory | DAS Turret deployed 8092 | -6/Factory | Build established: Mutant 8455 | -6/Factory | Lost 3 parts (3n) 8737 | -6/Factory | Build established: Gunner 9595 | -6/Factory | Entered another Factory area 9595 | -5/Factory | Evolved 2 slots: Utility x1, Weapon x1 10025 | -5/Factory | Repaired Flexi-carbon Leg 10056 | -5/Factory | DAS Turret deployed 10079 | -5/Factory | Lost 3 parts (1n2w) 10181 | -5/Factory | Discovered new exit (range 16) 10243 | -5/Factory | Entered Upper Caves 10403 | -5/Upper Caves | Lost 6 parts (2p1n1u2w) 10535 | -5/Upper Caves | Encountered a Warlord checkpoint 10571 | -5/Upper Caves | Attracted the attention of an 0b10 checkpoint 10673 | -5/Upper Caves | Spotted B-75 Beast 10795 | -5/Upper Caves | Lost 4 parts (1p1n2w) 11030 | -5/Upper Caves | Attracted the attention of an 0b10 outpost 11045 | -5/Upper Caves | Core integrity fell below 50% 11077 | -5/Upper Caves | Discovered new exit (range 10) 11082 | -5/Upper Caves | Entered another Upper Caves area 11082 | -5/Upper Caves | Spotted 6S-2VB(f) 11082 | -5/Upper Caves | Spotted DO-C5Z(f) 11082 | -5/Upper Caves | Spotted 96-RPL(f) 11083 | -5/Upper Caves | Encountered a Master Thief 11083 | -5/Upper Caves | Encountered a Master Thief 11083 | -5/Upper Caves | Encountered a Master Thief 11083 | -5/Upper Caves | Lgt. Antimatter Reactor stolen by Master Thief 11100 | -5/Upper Caves | Cld. Cesium-ion Thruster stolen by Master Thief 11110 | -5/Upper Caves | Destroyed 6S-2VB(f) 11114 | -5/Upper Caves | Lost 8 parts (1n3u4w) 11149 | -5/Upper Caves | Core integrity fell below 20% 11161 | -5/Upper Caves | Destroyed by S-27 Virus with Autogun Last Messages --------------- 11105_ Destroyed Master Tearclaws. 11106_ 6S-2VB(f) heat short circuits Nuclear Pulse Thruster. 11106_ 6S-2VB(f) overheating. 11107_ 6S-2VB(f) heat damages Imp. Propulsion Shielding. 11107_ 6S-2VB(f) overheating. 11108_ 6S-2VB(f) heat spikes uncontrollably. 11108_ 6S-2VB(f) overheating. 11109_ 6S-2VB(f) heat damages Nuclear Pulse Thruster, Nuclear Pulse Thruster, Nanoactuators, Adv. Weight Redist. System. 11109_ 6S-2VB(f) overheating. 11110_ 6S-2VB(f) destroyed. 11113_ Acquired 10 matter. 11115_ Acquired Railgun. 11117_ Acquired HERF Cannon. 11134_ C-30 ARC bursts open, deploying its payload. 11134_ S-27 Virus unfolds itself. 11137_ System corrupted: Component data lost. 11147_ S-27 Virus destroyed. 11152_ Imp. Hacking Suite destroyed. 11157_ VTOL Module fries itself beyond repair. Map ----- +----------------------------------------------------+ | ????????????????????????????????????????????????? | | ????????????????????????????????????????????????? | | ????????????????????????????????????????????????? | | ????????????????????????????????????????????????? | | ????????????????????????????????????????????????? | | ????????????????????????????????????????????????? | | ????????????????????????????????????????????????? | | ????????????????????????????????????????????????? | | ????????????????????????????????????????????????? | | ????????????????????????????????????????????????? | | ????????????????????????????????????????????????? | | ??????????????????????????###???????????????????? | | ??????????"?????????????###[##??????????????????? | | ?????????"" ????????????#X# #??????????????????? | | ??????? "" ???????????# [#??????????????????? | | ?????? ???????????#%# ##??????????????????? | | ?????? ??????????# ###???????????????????? | | ????? ?????????## #?###????????????????? | | ????? ???????#### ## ##???????????????? | | ????? ?????## # # #???????????????? | | ???? #????# #???????????????? | | ???? ##### #???????????????? | | ??? ##???????????????? | | ??? s #????????????????? | | ???? ??# ### ##???????????????? | | ???? #?## ##?# @ ##??????????????? | | ???? #??#########???##% s #??????????????? | | ???# ##??????????????# ##??????????????? | | ???# #????????###### s #???????????????? | | ??? % #??????## ## #???????????????? | | ??? ##???## ## ##???????????????? | | ??# ?? ##?# ##????????????????? | | ??# ??? #?# #####?????????????????? | | ?? ?????# ### #####?????????????????????? | | ?## ?????# ### ##?????????????????????????? | | ?# ?????# ## ###????????????????????????? | | ?# ?????# ## #????????????????????? | | ?# #?????# #???????????????????? | | ## ##????# #??????????????????? | | ##??## ## #??????????????????? | | #??# #### #?????????????????? | | #### ####??? #????????????????? | | " #?????? ## ????????????????? | | # ##?????? ###?? ????????????????? | | ####### ##???????#####??????????????????????? | | #####?????###???????????????????????????????????? | | ????????????????????????????????????????????????? | | ????????????????????????????????????????????????? | | ????????????????????????????????????????????????? | | ????????????????????????????????????????????????? | +----------------------------------------------------+ Best States ------------- Heat Dissipation 64 Energy Generation 30 Energy Capacity 360 Matter Stores 300 Matter Capacity 300 Sight Range 16 Terrain Scan Density 10 Additional Mass Support 6 Armor Coverage 225 Weapon Cycling 15 Evasion (%) 63 Targeting Accuracy 8 Recoil Reduction 2 Kinecelleration 30 Offensive Hacking 23 Item Schematics ----------------- Mak. Leg | -7/Factory | Scanalyzed Robot Schematics ------------------ None Fabricated ------------ Nothing Alien Tech Used ----------------- None Achievements -------------- None Challenges ------------ None Game ------ Seed SmallBoreBuckler Manual? 0 Play Time 01:03:06 Cumulative 100.2 hours Start 2023.11.02 @ 16:26:41 End 2023.11.02 @ 17:30:16 Sessions 1 Manual Loads 0 Difficulty Rogue Special Mode None Game No. 165 Rogue 162 Adventurer 3 Explorer 0 Win Type - Total 0 Types 0/0/0/0/0/0/0/0/0 Lore% 42 Gallery% 56 Achievement% 39 Wizard Run 0 Options --------- ASCII 0 Keyboard 0 Movement Mouse Keybinds 0 Fullscreen 2 Font 18/SmallcapsGlow Map View 76x50 Tactical HUD 1 Map Filters NONE Filters NONE Steam 1 RUN: fe516f75-c59f-485d-bf95-78d9a0095ccd